Cogmind - Beta 15 @@@ ROGUE MODE // 2025.08.22 @ 06:32:51 Player: Skuld Result: Destroyed by G-34 Mercenary with Small Laser Performance ------------- Evolutions (0) 0 Regions Visited (1) 200 Robots Destroyed (19) 95 Value Destroyed (518) 518 Prototype IDs (0) 0 Alien Tech Used (0) 0 Bonus (0) 0 TOTAL SCORE: 813 Bonus ------- None Cogmind --------- Core Integrity 0/250 Matter 300/300 Energy 88/100 System Corruption 0% Temperature Cool (6) Movement Hovering (116) Ox1 Location -10/Materials Parts ------- > --- POWER (1) -------- (None) > --- PROPULSION (2) --- Hover Unit Hover Unit > --- UTILITY (2) ------ Large Storage Unit Power Shielding > --- WEAPON (2) ------- Small Laser > --- INVENTORY (15) --- Light Ion Engine Improved Ion Engine Improved Ion Engine Aluminum Leg Aluminum Leg Aluminum Leg Huge Storage Unit Improved Targeting Computer Peak State ------------ > --- POWER ------------ Light Ion Engine > --- PROPULSION ------- Aluminum Leg Aluminum Leg > --- UTILITY ---------- Large Storage Unit Improved Targeting Computer > --- WEAPON ----------- Assault Rifle Assault Rifle > --- INVENTORY -------- Light Ion Engine Light Ion Engine Improved Ion Engine Improved Ion Engine Aluminum Leg Improved Targeting Computer EM Pulse Gun [Rating: 9] Favorites ----------- Power Light Ion Engine Engine Light Ion Engine Propulsion Aluminum Leg Leg Aluminum Leg Hover Unit Hover Unit Utility Large Storage Unit Device Seismic Detector Storage Large Storage Unit Processor Improved Targeting Computer Protection Power Shielding Weapon Assault Rifle Energy Gun Small Laser Ballistic Gun Assault Rifle Build | -11 -10 ------- Run | Yrd Mat Slots Evolved . | . . Power . | . . Propulsion . | . . Utility . | . . Weapon . | . . Parts Attached 23 | 7 16 Power 3 | 1 2 Engine 3 | 1 2 Core . | . . Reactor . | . . Propulsion 8 | 2 6 Treads . | . . Leg 5 | 2 3 Wheel . | . . Hover 3 | . 3 Flight . | . . Utility 6 | 2 4 Device 2 | 2 . Storage 2 | . 2 Processor 1 | . 1 Hackware . | . . Protection 1 | . 1 Artifact . | . . Weapon 6 | 2 4 Energy Gun 2 | . 2 Energy Cannon . | . . Ballistic Gun 4 | 2 2 Ballistic Cannon . | . . Launcher . | . . Special Weapon . | . . Impact Weapon . | . . Slashing Weapon . | . . Piercing Weapon . | . . Special Melee Weapon . | . . Unidentified Prototypes . | . . Parts Lost 7 | . 7 Power 1 | . 1 Propulsion 2 | . 2 Utility 1 | . 1 Weapon 3 | . 3 Highest Loss Streak 2 | . 2 To Critical Strikes 1 | . 1 Average Backups 6 | 1 6 Power 2 | . 2 Propulsion 1 | . 1 Utility 1 | . 1 Weapon . | . . Tool/Special . | . . Unused Backups 3 | . 3 Power 2 | . 2 Propulsion . | . . Utility 1 | . 1 Weapon . | . . Tool/Special . | . . Average Slot Usage (%) 88 | . 88 Engine 13 | . 13 Leg 19 | . 19 Hover 7 | . 7 Device 2 | . 2 Storage 13 | . 13 Processor 6 | . 6 Protection 3 | . 3 Energy Gun 5 | . 5 Ballistic Gun 14 | . 14 Peak Build Rating 9 | 7 9 Average Rating 7 | 4 7 On Entrance 3 | . 6 Naked Turns . | . . Heaviest Build 28 | 8 28 Greatest Support 20 | 20 20 Greatest Overweight (x) 6 | . 6 Average Overweight (x) 1 | . 1 Largest Inventory Capacity 25 | 5 25 Average Capacity 14 | 5 14 Most Carried 11 | 5 11 Average Carried 6 | 1 6 Final Capacity 15 | 5 15 Final Carried 8 | 3 8 Class Distribution -------------------- 100% | Mutant Dominant Class ---------------- Mutant | -10/Materials Resources | -11 -10 ----------- Run | Yrd Mat Matter Collected 736 | 324 412 Remotely . | . . Salvage Created 649 | 108 541 Parts 41 | 11 30 Haulers Intercepted . | . . Recyclers Shooed 1 | . 1 Parts Field Recycled . | . . Retrieved Matter . | . . Parts Self-Destructed . | . . Prevented . | . . Kills | -11 -10 ------- Run | Yrd Mat Combat Hostiles Destroyed 15 | 1 14 Guns 15 | 1 14 Classes Destroyed 5 | 3 2 Worker 1 | 1 . Tunneler 2 | 2 . Watcher 1 | . 1 Swarmer 3 | . 3 Grunt 12 | 1 11 Best Kill Streak 3 | 3 3 Combat Bots Only 3 | 1 3 Max Kills in Single Turn 2 | 2 1 Gunslinging . | . . Exploded . | . . Melee . | . . Uniques/NPCs Destroyed . | . . Combat | -11 -10 -------- Run | Yrd Mat Hostile Shots Fired 141 | 12 129 Missed 42 | 3 39 Hits 99 | 9 90 Projectile 99 | 9 90 Critical Strikes 2 | . 2 Damage Taken 1137 | 95 1042 Core 254 | 11 243 Absorbed by Shields . | . . Redirected to Shielding 15 | . 15 Core Remaining (%) 95 | 95 . Volleys Fired 92 | 9 83 Largest 2 | 2 2 Hottest 60 | 40 60 Shots Fired 148 | 18 130 Gun 148 | 18 130 Cannon . | . . Launcher . | . . Special . | . . Kinetic 112 | 18 94 Thermal 27 | . 27 Explosive . | . . Electromagnetic 9 | . 9 Robot Hit Streak 10 | 7 10 Robot Miss Streak 5 | 3 5 Penetration Max . | . . Secondary Targets 1 | . 1 Max Gunslinging Chain 1 | . 1 Shots Hit Robots 85 | 11 74 Core Hits 35 | 5 30 Critical Kills . | . . Critical Parts Destroyed 1 | . 1 Critical Strikes 1 | . 1 Destroy 1 | . 1 Melee Attacks . | . . Impact . | . . Slashing . | . . Piercing . | . . Sneak Attacks . | . . Combat Hostiles . | . . Follow-up Attacks . | . . Damage Inflicted 1066 | 165 901 Guns 1066 | 165 901 Cannons . | . . Explosions . | . . Melee . | . . Ramming . | . . Kinetic 789 | 165 624 Thermal 227 | . 227 Explosive . | . . Electromagnetic 50 | . 50 Impact . | . . Slashing . | . . Piercing . | . . Highest Corruption . | . . Average Corruption . | . . Corruption Purged . | . . Corruption Blocked . | . . Overload Shots . | . . Overflow Damage . | . . Projectiles . | . . Explosions . | . . Melee . | . . Knockbacks . | . . Impact . | . . Kinetic . | . . Secondary . | . . Self-Inflicted Damage . | . . Shots . | . . Rammed . | . . Targets Rammed . | . . Kicked . | . . Crushed . | . . Highest Temperature 116 | . 116 Average Temperature 35 | . 35 Received Heat Transfer 573 | 54 519 Siege Activations . | . . Martial Activations . | . . Shielding Activations . | . . Robots Disrupted . | . . Combat Hostiles . | . . Robots Corrupted . | . . Combat Hostiles . | . . Parts Fried . | . . Impact Corruptions . | . . Robots Melted . | . . Combat Hostiles . | . . Parts Melted 2 | . 2 Heat Transferred 525 | . 525 Parts Sabotaged . | . . Parts Stolen . | . . Parts Stripped . | . . Power Chain Reactions . | . . Alert | -11 -10 ------- Run | Yrd Mat Maximum Alert Level . | . . Low Security (%) 100 | 100 100 Level 1 . | . . Level 2 . | . . Level 3 . | . . Level 4 . | . . Level 5 . | . . High Security . | . . Max Security . | . . Peak Influence 77 | 20 77 Initial 6 | . 6 Average 16 | 3 17 Influence Increases 417 | 35 382 Destroy 0b10 Robot/C 300 | 20 280 Destroy 0b10 Robot/NC 20 | 15 5 Destroy Leader 62 | . 62 Successful Hack 5 | . 5 Disable Machine 15 | . 15 Lose Combat Pursuer 15 | . 15 Influence Decreases 417 | 25 392 Entered New Map 4 | . 4 Time Decay 356 | 25 331 Lost Part 57 | . 57 Squads Dispatched 4 | . 4 Investigation 2 | . 2 Extermination . | . . Reinforcement 2 | . 2 Assault . | . . Garrison . | . . Intercept . | . . Searches Triggered . | . . Construction Impeded . | . . Haulers Reinforced . | . . Active Scanning Responses . | . . Cargo Convoy Interrupts . | . . Stealth | -11 -10 --------- Run | Yrd Mat Distress Signals 1 | . 1 Communications Jammed . | . . Distress Signals . | . . Times Spotted 24 | 1 23 Peak Tracking Total 3 | 1 3 Tactical Retreats 1 | . 1 Traps | -11 -10 ------- Run | Yrd Mat Traps Triggered 4 | . 4 Indirectly . | . . Trap Hack Attempts . | . . Triggered . | . . Disarmed . | . . Reprogrammed . | . . Reused . | . . Traps Extracted . | . . Installed . | . . Triggered . | . . Machines | -11 -10 ---------- Run | Yrd Mat Machines Disabled 1 | . 1 Max in Single Turn 1 | . 1 Machines Repaired . | . . Machines Dismantled . | . . Machines Sabotaged . | . . Overloaded Fab Kills . | . . Hacking | -11 -10 --------- Run | Yrd Mat Machines Accessed 1 | . 1 Terminals 1 | . 1 Fabricators . | . . Repair Stations . | . . Recycling Units . | . . Scanalyzers . | . . Garrison Access . | . . Total Hacks 1 | . 1 Successful 1 | . 1 Failed . | . . Catastrophic . | . . Database Lockouts . | . . Manual . | . . Terminals 1 | . 1 Fabricators . | . . Repair Stations . | . . Recycling Units . | . . Scanalyzers . | . . Garrison Access . | . . Terminal Hacks 1 | . 1 Zone Layout 1 | . 1 Fabricator Hacks . | . . Repair Station Hacks . | . . Recycling Unit Hacks . | . . Scanalyzer . | . . Garrison Access Hacks . | . . Unauthorized Hacks . | . . Terminals . | . . Fabricators . | . . Repair Stations . | . . Recycling Units . | . . Scanalyzers . | . . Garrison Access . | . . Data Cores Recovered . | . . Used . | . . Hacking Detections . | . . Full Trace Events . | . . Feedback Events . | . . Feedback Blocked . | . . Robot Schematics Acquired . | . . Robots Built . | . . Authchips . | . . Time . | . . Total Robot Build Rating . | . . Part Schematics Acquired . | . . Parts Built . | . . Authchips . | . . Time . | . . Total Part Build Rating . | . . Parts Repaired . | . . Time . | . . Parts Recycled . | . . Recycled Matter . | . . Retrieved Matter . | . . Retrieved Components . | . . Parts Scanalyzed . | . . Part Schematics Acquired . | . . Parts Damaged . | . . Bothacking | -11 -10 ------------ Run | Yrd Mat Used RIF Installer . | . . Robots Hacked . | . . Non-combat . | . . Combat . | . . Robot Hacks Applied . | . . Relay Couplers Released . | . . Fabnet Peak Effective % . | . . Robots Rewired . | . . Allies Hacked . | . . Hacks Repelled . | . . Allies | -11 -10 -------- Run | Yrd Mat Total Allies . | . . Largest Group . | . . Highest-Rated Group . | . . Highest-Rated Ally . | . . Total Orders . | . . Ally Attacks . | . . Total Damage . | . . Kills . | . . Allies Corrupted . | . . Allies Melted . | . . Intel | -11 -10 ------- Run | Yrd Mat Active Infowar (turns) 222 | 6 216 Seismic 222 | 6 216 Robot Analysis Total . | . . Derelict Logs Recovered . | . . Drone Launches . | . . Drone Recoveries . | . . Exploration | -11 -10 ------------- Run | Yrd Mat Turns Passed 1583 | 129 1454 Spaces Moved 708 | 83 625 Core 26 | 21 5 Treads . | . . Legs 521 | 62 459 Wheels . | . . Hover 161 | . 161 Flight . | . . Fastest Speed 50 | 50 116 Average Speed 174 | 102 184 Slowest Speed 350 | 120 350 Overloaded Moves . | . . Propulsion Burnouts . | . . Robots Hopped . | . . Potential Cave-ins . | . . Cave-ins Triggered . | . . Exploration Rate (%) 43 | 6 80 Regions Visited 1 Branch Regions . Pre-discovered Areas . | . . Known Exits Taken . | . . Unknown Exits Taken 1 | 1 . Scrap Searched . | . . Spaces Dug . | . . Terrain Destroyed . | . . Melee . | . . Projectile . | . . AOE . | . . Terrain Rammed . | . . Walls Destroyed . | . . Machines Disabled . | . . Actions | -11 -10 --------- Run | Yrd Mat Total 910 | 109 801 Wait 49 | . 49 Move 707 | 82 625 Hop . | . . Pick Up 30 | 10 20 Fast Attach . | . . Attach 21 | 7 14 Detach 2 | . 2 Swap 5 | . 5 Drop 4 | 1 3 Fire 92 | 9 83 Melee . | . . Ram . | . . Kick . | . . Crush . | . . Escape Stasis . | . . Rewire . | . . Trap . | . . Miscellaneous . | . . Route ------- -11/Scrapyard -10/Materials (discovered 5 exits: [*Mat x3] / [*Min x2]) History --------- Turn | Location | Event 2 | -11/Scrapyard | Met Revision 17 79 | -11/Scrapyard | Discovered new exit (range 8) 130 | -11/Scrapyard | Entered Materials 130 | -10/Materials | Discovered new exit (range 14) 303 | -10/Materials | Build established: Mutant 791 | -10/Materials | Discovered new exit (range 12) 1023 | -10/Materials | Discovered new exit (range 16) 1173 | -10/Materials | Discovered new exit (range 17) 1272 | -10/Materials | Core integrity fell below 50% 1330 | -10/Materials | Core integrity fell below 20% 1548 | -10/Materials | Discovered new exit (range 15) 1584 | -10/Materials | Destroyed by G-34 Mercenary with Small Laser Last Messages --------------- 01343_ Hover Unit destroyed. 01349_ Aluminum Leg melted. 01349_ Ion Engine melted. 01349_ G-34 Mercenary destroyed. 01351_ Acquired 40 matter. 01362_ K-01 Serf collects debris. 01525_ T-07 Excavator is excavating. 01548_ EXIT=FOUND 01551_ T-07 Excavator is excavating. 01552_ Triggered Alarm Trap. 01552_ An alarm sounds. 01552_ ALERT: Alarm triggered, dispatching investigation squad. 01553_ U-05 Engineer lays Concrete. 01555_ T-07 Excavator is excavating. 01555_ U-05 Engineer lays Concrete. 01567_ Lgt. Ion Engine destroyed. 01569_ T-07 Excavator is excavating. 01569_ U-05 Engineer lays Concrete. [Achievement: First Step to Greatness] Map ----- +----------------------------------------------------+ | | | | | | | | | | | | | | | | | | | | | | | | | | | | | | | ?????????????????????????????????????????????????? | | ?????????????????????????????????????????????????? | | ?????????????????????##?#####????????????????????? | | ?????????????????????? ?# #????????????????????? | | ??????????????????????# # ?#######?????????????? | | ????????????###########T## ### ############### | | ?????????? | | ??????????< | | ?????????? | | ?????????????#############g### ############ ## | | ??????????????????????# @ ## ##??????????# #? | | ??????????????????????# ## ^ #???????????# ## | | ??????????????????????# ## #???#########+# | | ??????????????????????# """" ## #???# # | | ??????????????????????# """" ## #???# # | | ??????????????????????# """" ## #???# # | | ??????????????????????######### #???# """ """ # | | ??????????????????????????????# #???# """ """ + | | ??????????????????????????????# #???# """ """ # | | ??????????????????????????????# #???# # | | ??????????????????????????????# #???# # | | ??????????????????????????????# #?############# | | ??????????????????????????????# ### ####### | | ???????????????#######????????# | | ???????????????# #??########+#### T | | ???????????????# #?? # | | ???????????????# #??""""" # ! ###+#### | | ???????????????# #??""T"" ### #### #?? | | ???????????????# #?? #?# #??# #?? | | ???????????????# #?? #?# #??# #?? | | ???????????????# #?? #?# #??# #?? | | #+####?????????# #??###########+### #### #?? | | ?????????# #???????????# ^ ## #?? | | ? ????????# #??########## + ] ### | | ??? ????????# #??#""|"|""## #+### | +----------------------------------------------------+ Best States ------------- Heat Dissipation 25 Energy Generation 10 Energy Capacity 125 Matter Stores 300 Matter Capacity 300 Sight Range 16 Terrain Scan Density 10 Power Shielding 33 Evasion (%) 55 Targeting Accuracy 6 Item Schematics ----------------- None Robot Schematics ------------------ None Fabricated ------------ Nothing Repaired ---------- Nothing Alien Tech Used ----------------- None Achievements -------------- First Step to Greatness Storm Trooper Challenges ------------ None Game ------ Seed TacticalGunActivator Manual? 0 Play Time 00:21:04 Cumulative 0.3 hours Start 2025.08.22 @ 06:07:02 End 2025.08.22 @ 06:32:51 Sessions 1 Manual Loads 0 Difficulty Rogue Special Mode None Game No. 2 Rogue 1 Adventurer 0 Explorer 1 Win Type - Total 0 Types 0/0/0/0/0/0/0/0/0/0 Lore% 0 Gallery% 3 Achievement% 5 Wizard Run 0 Options --------- Layout 1 ASCII 0 Keyboard 0 Movement Arrows Keybinds 0 Fullscreen 1 Font 32/Cog Map View 50x35 Zoom Use 0% Tactical HUD 1 Map Filters NONE Filters NONE Steam 0 RUN: c198dc2f-9677-43f1-8192-b090f99cf9a9